Cogmind - Beta 13 @@@ ROGUE MODE // 2024.04.12 @ 18:54:33 Player: Strawberry Result: Destroyed by G-47 Trooper with Particle Gun Performance ------------- Evolutions (2) 1000 Regions Visited (4) 800 Robots Destroyed (23) 115 Value Destroyed (791) 791 Prototype IDs (1) 20 Alien Tech Used (0) 0 Bonus (0) 0 TOTAL SCORE: 2726 Bonus ------- None Cogmind --------- Core Integrity 0/550 Matter 277/300 Energy 310/310 System Corruption 0% Temperature Cool (36) Movement Walking (470) Ox5 Location -8/Materials Parts ------- > --- POWER (2) -------- Light Nuclear Core > --- PROPULSION (3) --- Aluminum Leg > --- UTILITY (4) ------ High-capacity Storage Unit Medium Battery ECM Suite > --- WEAPON (2) ------- Heavy Mace > --- INVENTORY (20) --- Light Treads Carbon-fiber Leg Carbon-fiber Leg Thermal Generator High-capacity Storage Unit Compact Matter Pod (150) Reaction Control System Hardened Medium Armor Plating Peak State ------------ > --- POWER ------------ Light Ion Engine Light Ion Engine > --- PROPULSION ------- Advanced Treads Advanced Treads Advanced Treads > --- UTILITY ---------- High-capacity Storage Unit Propulsion Shielding Hardened Medium Armor Plating Hardlight Generator > --- WEAPON ----------- Shock Rifle Medium Laser > --- INVENTORY -------- Light Ion Engine Light Ion Engine Aluminum Leg Aluminum Leg Improved Aluminum Leg Carbon-fiber Leg Carbon-fiber Leg Thermal Generator High-capacity Storage Unit Medium Battery Compact Matter Pod Reaction Control System Reaction Control System Reaction Control System Spread Laser Advanced Beam Rifle Heavy Mace [Rating: 26] Favorites ----------- Power Light Ion Engine Engine Light Ion Engine Power Core Light Nuclear Core Propulsion Light Treads Treads Light Treads Leg Aluminum Leg Utility Hardened Medium Armor Plating Device Hardlight Generator Storage High-capacity Storage Unit Protection Hardened Medium Armor Plating Weapon Shock Rifle Energy Gun Shock Rifle Ballistic Gun Assault Rifle Impact Weapon Heavy Mace Build | -11 -10 -10 -9 -8 ------- Run | Yrd Mat Min Mat Mat Slots Evolved 4 | . . . 2 2 Power 1 | . . . . 1 Propulsion 1 | . . . 1 . Utility 2 | . . . 1 1 Weapon . | . . . . . Parts Attached 45 | 6 . 2 7 30 Power 8 | 1 . . . 7 Engine 7 | 1 . . . 6 Core 1 | . . . . 1 Reactor . | . . . . . Propulsion 13 | 2 . . 1 10 Treads 6 | 2 . . 1 3 Leg 7 | . . . . 7 Wheel . | . . . . . Hover . | . . . . . Flight . | . . . . . Utility 16 | 1 . 2 4 9 Device 5 | . . . 1 4 Storage 8 | 1 . 1 2 4 Processor . | . . . . . Hackware . | . . . . . Protection 3 | . . 1 1 1 Artifact . | . . . . . Weapon 8 | 2 . . 2 4 Energy Gun 6 | 1 . . 2 3 Energy Cannon . | . . . . . Ballistic Gun 1 | 1 . . . . Ballistic Cannon . | . . . . . Launcher . | . . . . . Special Weapon . | . . . . . Impact Weapon 1 | . . . . 1 Slashing Weapon . | . . . . . Piercing Weapon . | . . . . . Special Melee Weapon . | . . . . . Unidentified Prototypes 1 | . . . . 1 Parts Lost 20 | . . . . 20 Power 5 | . . . . 5 Propulsion 6 | . . . . 6 Utility 4 | . . . . 4 Weapon 5 | . . . . 5 Highest Loss Streak 9 | . . . . 9 To Critical Strikes 1 | . . . . 1 Average Slot Usage (%) 90 | . 85 93 93 89 Engine 12 | . 14 14 11 12 Treads 19 | . 28 28 29 10 Leg 7 | . . . . 14 Device 8 | . . . 8 11 Storage 13 | . 14 14 10 14 Protection 8 | . . 8 11 9 Energy Gun 16 | . 14 14 19 16 Ballistic Gun 3 | . 14 14 2 . Naked Turns . | . . . . . Heaviest Build 66 | 12 12 10 42 66 Greatest Support 66 | 40 40 40 63 66 Greatest Overweight (x) 2 | . . . . 2 Average Overweight (x) . | . . . . . Largest Inventory Capacity 20 | 8 8 8 15 20 Average Capacity 13 | 7 8 5 7 19 Most Carried 19 | 4 5 5 8 19 Average Carried 9 | 2 4 4 5 13 Final Capacity 20 | 8 8 5 15 20 Final Carried 8 | 4 5 4 7 8 Class Distribution -------------------- 100% | Mutant Dominant Class ---------------- Mutant | -10/Materials Mutant | -10/Mines Mutant | -9/Materials Mutant | -8/Materials Resources | -11 -10 -10 -9 -8 ----------- Run | Yrd Mat Min Mat Mat Matter Collected 864 | 211 38 15 131 469 Remotely . | . . . . . Salvage Created 801 | . 38 . 131 632 Parts 45 | . 5 . 7 33 Haulers Intercepted . | . . . . . Recyclers Shooed 1 | . . . . 1 Parts Field Recycled . | . . . . . Retrieved Matter . | . . . . . Parts Self-Destructed . | . . . . . Prevented . | . . . . . Kills | -11 -10 -10 -9 -8 ------- Run | Yrd Mat Min Mat Mat Combat Hostiles Destroyed 20 | . 3 . 2 15 Melee 4 | . . . . 4 Guns 15 | . 3 . 2 10 Classes Destroyed 5 | . 1 . 3 1 Operator 1 | . . . 1 . Watcher 2 | . . . 1 1 Swarmer 5 | . 3 . . 2 Grunt 11 | . . . 2 9 Sentry 4 | . . . . 4 Best Kill Streak 3 | . 2 . 2 3 Combat Bots Only 3 | . 2 . 2 3 Max Kills in Single Turn 1 | . 1 . 1 1 Gunslinging . | . . . . . Exploded . | . . . . . Melee 1 | . . . . 1 Uniques/NPCs Destroyed . | . . . . . Combat | -11 -10 -10 -9 -8 -------- Run | Yrd Mat Min Mat Mat Hostile Shots Fired 269 | . 43 . 5 221 Missed 67 | . 12 . 1 54 Damage Taken 2716 | . 255 . 42 2419 Core 646 | . 90 . . 556 Absorbed by Shields 48 | . . . . 48 Redirected to Shielding 50 | . . . . 50 Core Remaining (%) 88 | 100 . 64 100 . Volleys Fired 76 | . 13 . 8 55 Largest 2 | . 2 . 2 2 Hottest 126 | . 70 . 100 126 Shots Fired 142 | . 26 . 16 100 Gun 142 | . 26 . 16 100 Cannon . | . . . . . Launcher . | . . . . . Special . | . . . . . Kinetic 13 | . 13 . . . Thermal 60 | . 13 . . 47 Explosive . | . . . . . Electromagnetic 69 | . . . 16 53 Robot Hit Streak 10 | . 2 . 3 10 Robot Miss Streak 4 | . 4 . 4 4 Penetration Max . | . . . . . Secondary Targets 2 | . . . . 2 Max Gunslinging Chain 1 | . . . . 1 Shots Hit Robots 87 | . 10 . 8 69 Core Hits 53 | . 3 . 4 46 Critical Kills . | . . . . . Critical Parts Destroyed 1 | . . . . 1 Critical Strikes 5 | . 1 . . 4 Burn 2 | . 1 . . 1 Corrupt 2 | . . . . 2 Smash 1 | . . . . 1 Melee Attacks 3 | . . . . 3 Impact 3 | . . . . 3 Slashing . | . . . . . Piercing . | . . . . . Sneak Attacks . | . . . . . Combat Hostiles . | . . . . . Follow-up Attacks . | . . . . . Damage Inflicted 1551 | . 126 . 178 1247 Guns 1419 | . 126 . 178 1115 Cannons . | . . . . . Explosions . | . . . . . Melee 51 | . . . . 51 Ramming 81 | . . . . 81 Kinetic 50 | . 50 . . . Thermal 531 | . 76 . . 455 Explosive . | . . . . . Electromagnetic 838 | . . . 178 660 Impact 51 | . . . . 51 Slashing . | . . . . . Piercing . | . . . . . Highest Corruption . | . . . . . Average Corruption . | . . . . . Corruption Purged . | . . . . . Corruption Blocked . | . . . . . Overload Shots . | . . . . . Overflow Damage 28 | . . . . 28 Projectiles . | . . . . . Explosions . | . . . . . Melee 28 | . . . . 28 Knockbacks . | . . . . . Impact . | . . . . . Kinetic . | . . . . . Secondary . | . . . . . Self-Inflicted Damage . | . . . . . Shots . | . . . . . Rammed 9 | . 1 . . 8 Targets Rammed 25 | . 1 . . 24 Kicked 13 | . . . . 13 Crushed 3 | . . . . 3 Highest Temperature 410 | . 90 . 198 410 Average Temperature 103 | . 38 . 73 117 Received Heat Transfer 1203 | . . . 24 1179 Effects 6 | . . . . 6 Shutdowns 3 | . . . . 3 Matter Decay 2 | . . . . 2 Short Circuit 1 | . . . . 1 Siege Activations . | . . . . . Robots Corrupted 1 | . . . . 1 Combat Hostiles 1 | . . . . 1 Parts Fried 6 | . . . 1 5 Impact Corruptions 1 | . . . . 1 Robots Melted . | . . . . . Combat Hostiles . | . . . . . Parts Melted 3 | . 1 . . 2 Heat Transferred 1291 | . 296 . . 995 Parts Sabotaged . | . . . . . Parts Stolen . | . . . . . Parts Stripped . | . . . . . Power Chain Reactions . | . . . . . Alert | -11 -10 -10 -9 -8 ------- Run | Yrd Mat Min Mat Mat Peak Influence 188 | . 100 39 120 188 Initial 39 | . . 39 14 8 Average 51 | . 42 39 27 70 Maximum Alert Level . | . . . . . Low Security (%) 100 | 100 100 100 100 100 Level 1 . | . . . . . Level 2 . | . . . . . Level 3 . | . . . . . Level 4 . | . . . . . Level 5 . | . . . . . High Security . | . . . . . Max Security . | . . . . . Squads Dispatched 7 | . . . 3 4 Investigation 1 | . . . . 1 Extermination . | . . . . . Reinforcement 6 | . . . 3 3 Assault . | . . . . . Garrison . | . . . . . Intercept . | . . . . . Searches Triggered . | . . . . . Construction Impeded 1 | . . . . 1 Haulers Reinforced . | . . . . . Active Scanning Responses . | . . . . . Cargo Convoy Interrupts . | . . . . . Stealth | -11 -10 -10 -9 -8 --------- Run | Yrd Mat Min Mat Mat Distress Signals 6 | . . . 4 2 Communications Jammed . | . . . . . Distress Signals . | . . . . . Times Spotted 44 | . 9 . 7 28 Peak Tracking Total 8 | . 5 . 2 8 Tactical Retreats . | . . . . . Traps | -11 -10 -10 -9 -8 ------- Run | Yrd Mat Min Mat Mat Traps Triggered . | . . . . . Indirectly . | . . . . . Trap Hack Attempts . | . . . . . Triggered . | . . . . . Disarmed . | . . . . . Reprogrammed . | . . . . . Reused . | . . . . . Traps Extracted . | . . . . . Installed . | . . . . . Triggered 1 | . . . . 1 Machines | -11 -10 -10 -9 -8 ---------- Run | Yrd Mat Min Mat Mat Machines Disabled 1 | . 1 . . . Max in Single Turn 1 | . 1 . . . Machines Repaired . | . . . . . Machines Dismantled . | . . . . . Machines Sabotaged . | . . . . . Overloaded Fab Kills . | . . . . . Hacking | -11 -10 -10 -9 -8 --------- Run | Yrd Mat Min Mat Mat Machines Accessed 5 | . 2 . 1 2 Terminals 3 | . 1 . 1 1 Fabricators . | . . . . . Repair Stations . | . . . . . Recycling Units 1 | . 1 . . . Scanalyzers 1 | . . . . 1 Garrison Access . | . . . . . Total Hacks 10 | . 3 . 2 5 Successful 7 | . 1 . 2 4 Failed 3 | . 2 . . 1 Catastrophic 2 | . 2 . . . Database Lockouts . | . . . . . Manual . | . . . . . Terminals 4 | . 1 . 2 1 Fabricators . | . . . . . Repair Stations . | . . . . . Recycling Units 2 | . 2 . . . Scanalyzers 4 | . . . . 4 Garrison Access . | . . . . . Terminal Hacks 2 | . . . 2 . Emergency Access Points 1 | . . . 1 . Alert Level 1 | . . . 1 . Fabricator Hacks . | . . . . . Repair Station Hacks . | . . . . . Recycling Unit Hacks 1 | . 1 . . . Report Inventory 1 | . 1 . . . Scanalyzer 4 | . . . . 4 Insert Component 2 | . . . . 2 Analyze 2 | . . . . 2 Garrison Access Hacks . | . . . . . Unauthorized Hacks . | . . . . . Terminals . | . . . . . Fabricators . | . . . . . Repair Stations . | . . . . . Recycling Units . | . . . . . Scanalyzers . | . . . . . Garrison Access . | . . . . . Data Cores Recovered . | . . . . . Used . | . . . . . Hacking Detections 3 | . 1 . . 2 Full Trace Events . | . . . . . Feedback Events . | . . . . . Feedback Blocked . | . . . . . Robot Schematics Acquired . | . . . . . Robots Built . | . . . . . Authchips . | . . . . . Time . | . . . . . Total Robot Build Rating . | . . . . . Part Schematics Acquired 2 | . . . . 2 Parts Built . | . . . . . Authchips . | . . . . . Time . | . . . . . Total Part Build Rating . | . . . . . Parts Repaired . | . . . . . Time . | . . . . . Parts Recycled . | . . . . . Recycled Matter . | . . . . . Retrieved Matter . | . . . . . Retrieved Components . | . . . . . Parts Scanalyzed 2 | . . . . 2 Part Schematics Acquired 2 | . . . . 2 Parts Damaged . | . . . . . Bothacking | -11 -10 -10 -9 -8 ------------ Run | Yrd Mat Min Mat Mat Used RIF Installer . | . . . . . Robots Hacked . | . . . . . Non-combat . | . . . . . Combat . | . . . . . Robot Hacks Applied . | . . . . . Relay Couplers Released . | . . . . . Fabnet Peak Effective % . | . . . . . Robots Rewired . | . . . . . Allies Hacked . | . . . . . Hacks Repelled . | . . . . . Allies | -11 -10 -10 -9 -8 -------- Run | Yrd Mat Min Mat Mat Total Allies . | . . . . . Largest Group . | . . . . . Highest-Rated Group . | . . . . . Highest-Rated Ally . | . . . . . Total Orders . | . . . . . Ally Attacks . | . . . . . Total Damage . | . . . . . Kills . | . . . . . Allies Corrupted . | . . . . . Allies Melted . | . . . . . Intel | -11 -10 -10 -9 -8 ------- Run | Yrd Mat Min Mat Mat Robot Analysis Total . | . . . . . Derelict Logs Recovered 1 | . . 1 . . Drone Launches . | . . . . . Drone Recoveries . | . . . . . Exploration | -11 -10 -10 -9 -8 ------------- Run | Yrd Mat Min Mat Mat Turns Passed 2032 | 64 280 173 495 1020 Spaces Moved 935 | 38 144 103 269 381 Core 11 | 11 . . . . Treads 717 | 27 144 103 269 174 Legs 207 | . . . . 207 Wheels . | . . . . . Hover . | . . . . . Flight . | . . . . . Fastest Speed 50 | 50 160 160 160 145 Average Speed 169 | 128 160 160 160 187 Slowest Speed 260 | 160 160 160 160 260 Overloaded Moves . | . . . . . Propulsion Burnouts . | . . . . . Robots Hopped . | . . . . . Cave-ins Triggered . | . . . . . Exploration Rate (%) 23 | 5 27 27 23 33 Regions Visited 4 Branch Regions 1 Pre-discovered Areas . | . . . . . Known Exits Taken . | . . . . . Unknown Exits Taken 4 | 1 1 1 1 . Scrap Searched 1 | . . 1 . . Spaces Dug . | . . . . . Terrain Destroyed . | . . . . . Melee . | . . . . . Projectile . | . . . . . AOE . | . . . . . Terrain Rammed . | . . . . . Walls Destroyed . | . . . . . Machines Disabled . | . . . . . Actions | -11 -10 -10 -9 -8 --------- Run | Yrd Mat Min Mat Mat Total 1209 | 53 167 112 323 554 Wait 51 | . 9 6 11 25 Move 931 | 37 143 102 268 381 Hop . | . . . . . Pick Up 54 | 10 1 1 17 25 Fast Attach . | . . . . . Attach 36 | 6 . 2 5 23 Detach 4 | . . . . 4 Swap 9 | . . . 2 7 Drop 20 | . . 1 12 7 Fire 76 | . 13 . 8 55 Melee 3 | . . . . 3 Ram 1 | . . . . 1 Kick 13 | . . . . 13 Crush 11 | . 1 . . 10 Escape Stasis . | . . . . . Rewire . | . . . . . Trap . | . . . . . Miscellaneous . | . . . . . Route ------- -11/Scrapyard -10/Materials -10/Mines -9/Materials -8/Materials History --------- Turn | Location | Event 8 | -11/Scrapyard | Discovered new exit (range 15) 65 | -11/Scrapyard | Entered Materials 313 | -10/Materials | Build established: Mutant 331 | -10/Materials | Discovered new exit (range 6) 345 | -10/Materials | Entered Mines 375 | -10/Mines | Discovered new exit (range 15) 518 | -10/Mines | Entered Materials 518 | -9/Materials | Evolved 2 slots: Propulsion x1, Utility x1 927 | -9/Materials | Discovered new exit (range 16) 1013 | -9/Materials | Entered another Materials area 1013 | -8/Materials | Evolved 2 slots: Power x1, Utility x1 1726 | -8/Materials | Lost 9 parts (2p3n2u2w) 1918 | -8/Materials | Core integrity fell below 50% 1976 | -8/Materials | Lost 5 parts (2p1n1u1w) 2011 | -8/Materials | Core integrity fell below 20% 2033 | -8/Materials | Destroyed by G-47 Trooper with Particle Gun Last Messages --------------- G-47 Trooper destroyed. Imp. Ion Engine destroyed. Imp. Heat Sink melted. G-47 Trooper destroyed. ALERT: Construction progress impeded, dispatching reinforcements to local area. Acquired Lgt. Nuclear Core. K-01 Serf collects debris. Kicked T-07 Excavator out of the way. K-01 Serf collects debris. Spread Laser destroyed. K-01 Serf cleans the Terminal. Lgt. Ion Engine destroyed. Aluminum Leg destroyed. Reaction Control System destroyed. G-47 Trooper suffers critical hit (Smash). Destroyed Aluminum Leg. G-47 Trooper system corrupted by crushing effect. Critical hit (Burn: +37). Map ----- +----------------------------------------------------+ | ?????????????????# ###% | | ???????????????????? ###########/####### #?# | | ??????????????????????????# # #?# | | ??????????????????????????# [ """ # #?####### | | ??????????????????????????# ![ """ !# #???????? | | ??????????????????????????# ![ """ # #???????? | | ??????????????????????????# =% # #???????? | | ?????????????????????????##########+####+######### | | ?????????????????????????# ??????# #?# / | | ?????????????????????????# ????# #?# "T" ### | | ?????????????????????????# ??# ### #?? | | ?????????????????????????? """ # # #?? | | ???????????????????????????""""" + + #?? | | ???????????????????????????""""" # # """ ! #?? | | ????????????????????????????""""??# # """ #?? | | ????????????????????????????""????# %# """ #?? | | ??????????????????????????????????# # #?? | | ??????????????????????????????????# ##########?? | | ????????????????????????########### #??????##### | | ????????????????????????#*[ = # #??????# | | ???????????????????????##! / = # #??????# | | ???????????????????????# !!/ =%[+ #??????# | | ???????????????????????##!=/ # #??????+ # | | ????????????????## ?????########### #??????# # | | ???????????????## ############# ##?????# # | | ?????????? k g@ #######^^^# | | ?????????? T g =%%% # | | ???????????? k % %% " | | ?????????????#### ############ # | | ????????????????###+#????????????# ####### # | | ?????????????????????????????????#######?????# # | | ?????????????????????????????????????????????# # | | ?????????????????????????????????????????????# # | | ?????????????????????????????????????????????# | | ?????????????????????????????????????????????# | | ?????????????????????????????????????????????# | | ?????????????????????????????????????????????##### | | ?????????????????????????????????????????????????? | | ?????????????????????????????????????????????????? | | ?????????????????????????????????????????????##### | | ?????????????????????????????########????????# | | ?????????????????????????????# ! ########## | | ?????????????????????????????# + | | ?????????????????????????????# ! ####+######/## | | ?????????????????????????????#!! ## # | | ?????????????????????????????#!! ##![ # """ "" | | ?????????????????????????????# !## # """ "" | | ?????????????????????????????######### # """ "" | | ?????????????????????????????????????#! ! # """ "" | | ?????????????????????????????????????# # | +----------------------------------------------------+ Best States ------------- Heat Dissipation 31 Energy Generation 17 Energy Capacity 440 Matter Stores 396 Matter Capacity 450 Sight Range 16 Terrain Scan Density 10 ECM Strength 1 Armor Coverage 225 Propulsion Shielding 33 Weapon Shielding 33 Evasion (%) 50 Recoil Reduction 3 Item Schematics ----------------- Lgt. Treads | -8/Materials | Scanalyzed Lgt. Ion Engine | -8/Materials | Scanalyzed Robot Schematics ------------------ None Fabricated ------------ Nothing Alien Tech Used ----------------- None Achievements -------------- None Challenges ------------ None Game ------ Seed ReactivePowerBiocell Manual? 0 Play Time 00:27:22 Cumulative 5.2 hours Start 2024.04.12 @ 18:24:33 End 2024.04.12 @ 18:54:33 Sessions 1 Manual Loads 0 Difficulty Rogue Special Mode None Game No. 6 Rogue 6 Adventurer 0 Explorer 0 Win Type - Total 0 Types 0/0/0/0/0/0/0/0/0 Lore% 2 Gallery% 9 Achievement% 8 Wizard Run 0 Options --------- Layout 1 ASCII 0 Keyboard 0 Movement Mouse Keybinds 0 Fullscreen 2 Font 24/Smallcaps Map View 50x35 Zoom Use 0% Tactical HUD 0 Map Filters NONE Filters NONE Steam 0 RUN: abc141b4-4830-49af-9a4a-64e60109d9a1